Cogmind - Beta 14 @@@ ROGUE MODE // 2024.11.12 @ 13:38:00 Player: Zunekagek Result: Self-destructed Performance ------------- Evolutions (2) 1000 Regions Visited (4) 800 Robots Destroyed (12) 60 Value Destroyed (275) 275 Prototype IDs (3) 60 Alien Tech Used (0) 0 Bonus (233) 233 TOTAL SCORE: 2428 Bonus ------- Follower Combat Kills 33 Entered Garrisons 200 Cogmind --------- Core Integrity 382/550 Matter 273/300 Energy 10/100 System Corruption 2% Temperature Cool (6) Movement Core (150) Ox2 Location -8/Garrison Parts ------- > --- POWER (1) -------- (None) > --- PROPULSION (4) --- Improved Flight Unit Improved Flight Unit > --- UTILITY (4) ------ Signal Interpreter > --- WEAPON (2) ------- Improved EM Pulse Cannon > --- INVENTORY (5) ---- Cooling System Peak State ------------ > --- POWER ------------ Light Ion Engine > --- PROPULSION ------- Improved Hover Unit Flight Unit Improved Flight Unit Improved Flight Unit > --- UTILITY ---------- Heat Sink Signal Interpreter > --- WEAPON ----------- Improved EM Pulse Cannon Datajack > --- INVENTORY -------- Cooling System Improved EM Pulse Cannon [Rating: 17] Favorites ----------- Power Light Ion Engine Engine Light Ion Engine Propulsion Light Treads Treads Light Treads Hover Unit Improved Hover Unit Flight Unit Flight Unit Utility Heat Sink Device Heat Sink Storage Small Storage Unit Processor Signal Interpreter Weapon Assault Rifle Energy Gun EM Pulse Gun Energy Cannon Light EM Pulse Cannon Ballistic Gun Assault Rifle Special Melee Weapon Datajack Build | -11 -10 -9 -8 -8 ------- Run | Yrd Mat Mat Mat Gar Slots Evolved 4 | . . 2 2 . Power . | . . . . . Propulsion 2 | . . 1 1 . Utility 2 | . . 1 1 . Weapon . | . . . . . Parts Attached 27 | 6 2 12 4 3 Power 2 | 1 . 1 . . Engine 2 | 1 . 1 . . Core . | . . . . . Reactor . | . . . . . Propulsion 10 | 2 . 5 2 1 Treads 2 | 2 . . . . Leg . | . . . . . Wheel . | . . . . . Hover 1 | . . . . 1 Flight 7 | . . 5 2 . Utility 6 | 1 1 2 2 . Device 3 | . 1 1 1 . Storage 1 | 1 . . . . Processor 2 | . . 1 1 . Hackware . | . . . . . Protection . | . . . . . Artifact . | . . . . . Weapon 9 | 2 1 4 . 2 Energy Gun 2 | 1 . 1 . . Energy Cannon 3 | . . 1 . 2 Ballistic Gun 2 | 1 1 . . . Ballistic Cannon . | . . . . . Launcher . | . . . . . Special Weapon . | . . . . . Impact Weapon . | . . . . . Slashing Weapon . | . . . . . Piercing Weapon . | . . . . . Special Melee Weapon 2 | . . 2 . . Unidentified Prototypes 1 | . . 1 . . Parts Lost 10 | . 1 2 . 7 Power 2 | . . 1 . 1 Propulsion 3 | . . . . 3 Utility 1 | . . . . 1 Weapon 4 | . 1 1 . 2 Highest Loss Streak 7 | . 1 1 . 7 To Critical Strikes . | . . . . . Average Slot Usage (%) 89 | . 92 96 85 66 Engine 11 | . 14 11 9 4 Treads 15 | . 28 . . . Flight 14 | . . 33 36 27 Device 9 | . 7 14 11 8 Storage 8 | . 14 4 . . Processor 4 | . . 10 11 9 Energy Gun 5 | . 7 5 . . Energy Cannon 3 | . . 5 9 9 Ballistic Gun 12 | . 20 5 . . Special Melee Weapon 2 | . . 5 9 5 Peak Build Rating 17 | 6 7 12 16 17 Average Rating 8 | 4 6 9 14 14 On Entrance 7 | . 6 7 10 14 Naked Turns . | . . . . . Heaviest Build 13 | 12 13 12 11 12 Greatest Support 40 | 40 40 12 18 18 Greatest Overweight (x) . | . . . . . Average Overweight (x) . | . . . . . Largest Inventory Capacity 8 | 8 8 8 5 5 Average Capacity 6 | 6 8 6 5 5 Most Carried 5 | 2 5 5 2 3 Average Carried 2 | 1 3 2 . 1 Final Capacity 8 | 8 8 5 5 5 Final Carried 5 | 2 5 3 1 1 Class Distribution -------------------- 64% | Mutant 24% | Scavenger-Mutant 10% | Sprinter Dominant Class ---------------- Mutant | -10/Materials Scavenger-Mutant | -9/Materials Sprinter | -8/Materials Mutant | -8/Garrison Resources | -11 -10 -9 -8 -8 ----------- Run | Yrd Mat Mat Mat Gar Matter Collected 451 | 226 97 108 . 20 Remotely . | . . . . . Salvage Created 435 | . 246 108 . 81 Parts 23 | . 13 4 . 6 Haulers Intercepted 1 | . . 1 . . Recyclers Shooed 1 | . 1 . . . Parts Field Recycled . | . . . . . Retrieved Matter . | . . . . . Parts Self-Destructed . | . . . . . Prevented . | . . . . . Kills | -11 -10 -9 -8 -8 ------- Run | Yrd Mat Mat Mat Gar Combat Hostiles Destroyed 8 | . 6 1 . 1 Guns 4 | . 4 . . . Cannons 2 | . . 1 . 1 AOE 2 | . 2 . . . Classes Destroyed 8 | . 4 2 . 2 Builder 1 | . 1 . . . Hauler 1 | . . 1 . . Recycler 1 | . 1 . . . Watcher 1 | . . . . 1 Swarmer 2 | . 2 . . . Grunt 4 | . 4 . . . Brawler 1 | . . . . 1 Sentry 1 | . . 1 . . Best Kill Streak 4 | . 4 2 . 2 Combat Bots Only 4 | . 4 1 . 1 Max Kills in Single Turn 2 | . 2 1 . 1 Gunslinging . | . . . . . Exploded 2 | . 2 . . . Melee . | . . . . . Uniques/NPCs Destroyed . | . . . . . Combat | -11 -10 -9 -8 -8 -------- Run | Yrd Mat Mat Mat Gar Hostile Shots Fired 112 | . 30 26 . 56 Missed 44 | . 11 13 . 20 Damage Taken 937 | . 230 168 . 539 Core 219 | . 11 40 . 168 Absorbed by Shields 40 | . . . . 40 Core Remaining (%) 95 | 100 95 90 . . Volleys Fired 27 | . 16 4 . 7 Largest 2 | . 2 1 . 1 Hottest 69 | . 60 56 . 69 Shots Fired 43 | . 32 4 . 7 Gun 32 | . 32 . . . Cannon 11 | . . 4 . 7 Launcher . | . . . . . Special . | . . . . . Kinetic 16 | . 16 . . . Thermal . | . . . . . Explosive . | . . . . . Electromagnetic 27 | . 16 4 . 7 Robot Hit Streak 9 | . 8 4 . 9 Robot Miss Streak 3 | . 3 . . . Penetration Max . | . . . . . Secondary Targets 1 | . 1 . . . Max Gunslinging Chain 1 | . 1 . . . Shots Hit Robots 46 | . 22 12 . 12 Core Hits 14 | . 9 3 . 2 Critical Kills . | . . . . . Critical Parts Destroyed . | . . . . . Critical Strikes 1 | . 1 . . . Corrupt 1 | . 1 . . . Melee Attacks 16 | . . 8 . 8 Impact . | . . . . . Slashing . | . . . . . Piercing . | . . . . . Sneak Attacks 6 | . . 5 . 1 Combat Hostiles . | . . . . . Follow-up Attacks . | . . . . . Damage Inflicted 639 | . 374 79 . 186 Guns 276 | . 276 . . . Cannons 228 | . . 79 . 149 Explosions 132 | . 95 . . 37 Melee . | . . . . . Ramming 3 | . 3 . . . Kinetic 79 | . 79 . . . Thermal 132 | . 95 . . 37 Explosive . | . . . . . Electromagnetic 425 | . 197 79 . 149 Impact . | . . . . . Slashing . | . . . . . Piercing . | . . . . . Highest Corruption 4 | . 1 4 . 2 Average Corruption 1 | . 1 4 . 2 Corruption Purged . | . . . . . Corruption Blocked . | . . . . . Effects 3 | . . 2 . 1 Matter Fused 1 | . . 1 . . Heat Flow Errors 1 | . . 1 . . Data Loss (minor) 1 | . . . . 1 Overload Shots . | . . . . . Overflow Damage 24 | . 18 . . 6 Projectiles 6 | . . . . 6 Explosions 18 | . 18 . . . Melee . | . . . . . Knockbacks . | . . . . . Impact . | . . . . . Kinetic . | . . . . . Secondary . | . . . . . Self-Inflicted Damage 45 | . 33 . . 12 Shots 2 | . 1 . . 1 Rammed 1 | . 1 . . . Targets Rammed 3 | . 3 . . . Kicked . | . . . . . Crushed 2 | . 2 . . . Highest Temperature 192 | . 90 192 . 20 Average Temperature 44 | . 50 192 . 6 Received Heat Transfer 300 | . 90 69 . 141 Siege Activations . | . . . . . Robots Corrupted . | . . . . . Combat Hostiles . | . . . . . Parts Fried . | . . . . . Impact Corruptions . | . . . . . Robots Melted . | . . . . . Combat Hostiles . | . . . . . Parts Melted . | . . . . . Heat Transferred 150 | . 100 . . 50 Parts Sabotaged . | . . . . . Parts Stolen . | . . . . . Parts Stripped . | . . . . . Power Chain Reactions 3 | . 2 . . 1 Alert | -11 -10 -9 -8 -8 ------- Run | Yrd Mat Mat Mat Gar Peak Influence 377 | . 182 162 87 377 Initial 76 | . . 76 68 56 Average 103 | . 95 104 70 198 Maximum Alert Level 1 | . . . . 1 Low Security (%) 93 | 100 100 100 100 54 Level 1 6 | . . . . 45 Level 2 . | . . . . . Level 3 . | . . . . . Level 4 . | . . . . . Level 5 . | . . . . . High Security . | . . . . . Max Security . | . . . . . Squads Dispatched 3 | . 2 1 . . Investigation 2 | . 1 1 . . Extermination . | . . . . . Reinforcement 1 | . 1 . . . Assault . | . . . . . Garrison . | . . . . . Intercept . | . . . . . Searches Triggered . | . . . . . Construction Impeded . | . . . . . Haulers Reinforced . | . . . . . Active Scanning Responses . | . . . . . Cargo Convoy Interrupts . | . . . . . Stealth | -11 -10 -9 -8 -8 --------- Run | Yrd Mat Mat Mat Gar Distress Signals 3 | . 1 1 . 1 Communications Jammed . | . . . . . Distress Signals . | . . . . . Times Spotted 29 | . 8 7 1 13 Peak Tracking Total 12 | . 3 6 1 12 Tactical Retreats 3 | . 1 . . 2 Traps | -11 -10 -9 -8 -8 ------- Run | Yrd Mat Mat Mat Gar Traps Triggered 3 | . 1 1 . 1 Indirectly . | . . . . . Trap Hack Attempts . | . . . . . Triggered . | . . . . . Disarmed . | . . . . . Reprogrammed . | . . . . . Reused . | . . . . . Traps Extracted . | . . . . . Installed . | . . . . . Triggered . | . . . . . Machines | -11 -10 -9 -8 -8 ---------- Run | Yrd Mat Mat Mat Gar Machines Disabled . | . . . . . Max in Single Turn . | . . . . . Phase Generator 1 | . . . . 1 Machines Repaired . | . . . . . Machines Dismantled . | . . . . . Machines Sabotaged . | . . . . . Overloaded Fab Kills . | . . . . . Hacking | -11 -10 -9 -8 -8 --------- Run | Yrd Mat Mat Mat Gar Machines Accessed 11 | . 3 3 2 3 Terminals 10 | . 3 3 1 3 Fabricators . | . . . . . Repair Stations . | . . . . . Recycling Units . | . . . . . Scanalyzers . | . . . . . Garrison Access 1 | . . . 1 . Total Hacks 38 | . 9 14 8 7 Successful 17 | . 4 7 3 3 Failed 21 | . 5 7 5 4 Catastrophic 2 | . 1 . . 1 Database Lockouts . | . . . . . Manual 2 | . 2 . . . Terminals 35 | . 9 14 5 7 Fabricators . | . . . . . Repair Stations . | . . . . . Recycling Units . | . . . . . Scanalyzers . | . . . . . Garrison Access 3 | . . . 3 . Terminal Hacks 16 | . 4 7 2 3 Record 1 | . . 1 . . Robot Analysis 1 | . 1 . . . Prototype ID Bank 1 | . 1 . . . Open Door 1 | . . . . 1 Branch Access Points 1 | . . 1 . . Emergency Access Points 1 | . . . . 1 Alert Level 1 | . . . 1 . Locate Traps 3 | . . 2 1 . Dispatch Records 2 | . 1 1 . . Maintenance Status 1 | . . 1 . . Patrol Status 1 | . 1 . . . Hauler Manifests 1 | . . 1 . . Patrol Navigation 1 | . . . . 1 Fabricator Hacks . | . . . . . Repair Station Hacks . | . . . . . Recycling Unit Hacks . | . . . . . Scanalyzer . | . . . . . Garrison Access Hacks 1 | . . . 1 . Unlock Access 1 | . . . 1 . Unauthorized Hacks . | . . . . . Terminals . | . . . . . Fabricators . | . . . . . Repair Stations . | . . . . . Recycling Units . | . . . . . Scanalyzers . | . . . . . Garrison Access . | . . . . . Data Cores Recovered . | . . . . . Used . | . . . . . Hacking Detections 10 | . 3 3 2 2 Full Trace Events 3 | . 1 . . 2 Feedback Events . | . . . . . Feedback Blocked . | . . . . . Robot Schematics Acquired . | . . . . . Robots Built . | . . . . . Authchips . | . . . . . Time . | . . . . . Total Robot Build Rating . | . . . . . Part Schematics Acquired . | . . . . . Parts Built . | . . . . . Authchips . | . . . . . Time . | . . . . . Total Part Build Rating . | . . . . . Parts Repaired . | . . . . . Time . | . . . . . Parts Recycled . | . . . . . Recycled Matter . | . . . . . Retrieved Matter . | . . . . . Retrieved Components . | . . . . . Parts Scanalyzed . | . . . . . Part Schematics Acquired . | . . . . . Parts Damaged . | . . . . . Bothacking | -11 -10 -9 -8 -8 ------------ Run | Yrd Mat Mat Mat Gar Used RIF Installer . | . . . . . Robots Hacked 5 | . . 5 . . Non-combat 4 | . . 4 . . Combat 1 | . . 1 . . Robot Hacks Applied 6 | . . 6 . . parse_system 3 | . . 3 . . no_distress 2 | . . 2 . . find_recycling 1 | . . 1 . . Relay Couplers Released . | . . . . . Fabnet Peak Effective % . | . . . . . Robots Rewired . | . . . . . Allies Hacked . | . . . . . Hacks Repelled . | . . . . . Allies | -11 -10 -9 -8 -8 -------- Run | Yrd Mat Mat Mat Gar Total Allies 2 | . . . . 2 Largest Group 2 | . . . . 2 Highest-Rated Group 62 | . . . . 62 Highest-Rated Ally 31 | . . . . 31 Total Orders . | . . . . . Ally Attacks 23 | . . . . 23 Total Damage 230 | . . . . 230 Kills 5 | . . . . 5 Allies Corrupted . | . . . . . Allies Melted . | . . . . . Intel | -11 -10 -9 -8 -8 ------- Run | Yrd Mat Mat Mat Gar Robot Analysis Total 1 | . 1 . . . Derelict Logs Recovered . | . . . . . Drone Launches . | . . . . . Drone Recoveries . | . . . . . Exploration | -11 -10 -9 -8 -8 ------------- Run | Yrd Mat Mat Mat Gar Turns Passed 781 | 62 389 180 39 111 Spaces Moved 735 | 34 199 306 74 122 Core 2 | 2 . . . . Treads 231 | 32 199 . . . Legs . | . . . . . Wheels . | . . . . . Hover . | . . . . . Flight 502 | . . 306 74 122 Fastest Speed 31 | 50 160 34 31 31 Average Speed 73 | 153 160 34 31 32 Slowest Speed 160 | 160 160 34 31 37 Overloaded Moves . | . . . . . Propulsion Burnouts . | . . . . . Robots Hopped 8 | . . 4 . 4 Cave-ins Triggered . | . . . . . Exploration Rate (%) 20 | 3 39 21 16 21 Regions Visited 4 Branch Regions . Pre-discovered Areas . | . . . . . Known Exits Taken 2 | . . 1 1 . Unknown Exits Taken 2 | 1 1 . . . Scrap Searched . | . . . . . Spaces Dug . | . . . . . Terrain Destroyed 13 | . 8 . . 5 Melee . | . . . . . Projectile . | . . . . . AOE 13 | . 8 . . 5 Terrain Rammed . | . . . . . Walls Destroyed . | . . . . . Machines Disabled . | . . . . . Actions | -11 -10 -9 -8 -8 --------- Run | Yrd Mat Mat Mat Gar Total 915 | 41 235 372 90 177 Wait 76 | . 12 30 7 27 Move 716 | 33 198 297 73 115 Hop 7 | . . 4 . 3 Pick Up 15 | 2 4 7 . 2 Fast Attach 12 | 6 1 3 2 . Attach 12 | . 1 8 1 2 Detach 5 | . . 2 3 . Swap 3 | . . 1 1 1 Drop 12 | . . 8 3 1 Fire 27 | . 16 4 . 7 Melee 16 | . . 8 . 8 Ram . | . . . . . Kick . | . . . . . Crush 3 | . 3 . . . Escape Stasis 11 | . . . . 11 Rewire . | . . . . . Trap . | . . . . . Miscellaneous . | . . . . . Route ------- -11/Scrapyard -10/Materials -9/Materials (discovered 3 exits: *Mat / Min x2) -8/Materials -8/Garrison History --------- Turn | Location | Event 22 | -11/Scrapyard | Discovered new exit (range 15) 63 | -11/Scrapyard | Entered Materials 304 | -10/Materials | Build established: Mutant 368 | -10/Materials | Discovered new exit (range 11) 452 | -10/Materials | Entered another Materials area 452 | -9/Materials | Evolved 2 slots: Propulsion x1, Utility x1 520 | -9/Materials | Identified exit to Mines 627 | -9/Materials | Discovered new exit (range 15) 632 | -9/Materials | Identified exit to Materials 632 | -9/Materials | Entered another Materials area 632 | -8/Materials | Evolved 2 slots: Propulsion x1, Utility x1 670 | -8/Materials | Identified exit to Garrison 671 | -8/Materials | Entered Garrison 694 | -8/Garrison | Rescued a captive Derelict 700 | -8/Garrison | Rescued a captive Derelict 760 | -8/Garrison | Phase Generator disabled 766 | -8/Garrison | Warlord forces raided the area 782 | -8/Garrison | Self-destructed Last Messages --------------- 00742_ Flight Unit destroyed. 00743_ Field strength at 14. 00744_ Field strength at 9. 00744_ Stasis field depleted. 00744_ Datajack destroyed. 00744_ System corrupted by crushing effect (+2). 00744_ Knocked back. 00745_ Imp. Hover Unit destroyed. 00760_ Phase Generator explodes. 00760_ Imp. EM Pulse Cannon destroyed. 00762_ Connecting with Garrison Terminal... >>Download(Navigation) Retrieving Materials patrol records... Downloaded protocol data. 00762_ ALERT: Suspicious activity at Terminal G001. Transmitting hostile system tracking data. 00765_ The unstable cave ceiling collapses. 00768_ System corrupted: Component data lost. 00775_ Heat Sink destroyed. Map ----- +----------------------------------------------------+ | | | | | | | | | | | | | | | | | | | | | | | | | | | | | | | | | ???????????????????????????????????????????????? | | ???????????????????????????????????????????????? | | ???????????????????????????????????????????????? | | ???????????????????????????????????????????????? | | ???????????????????????????????????????????????? | | ???????????????????????????????????????????????? | | ???????????????????????????????????????????????? | | ???????????????????????####????????????????????? | | ???????????????????????#""#????????????????????? | | ???????????????????????#T@#????????????????????? | | ???????????????????????#" #????????????????????? | | ???????????????????????## #????????????????????? | | ????????????????????????# #####????????????????? | | ???????????????????????##b# # ####?????????????? | | ??????????????????????##g g ###???????????? | | ??????????????????????# # "#???????????? | | #######??????????????# #???????????? | | # #T# #??????#####???# Y #???????????? | | # %! #?????## ##?# #??????????? | | ###[###?????# #### s #??????????? | | ??# #???????# # #??????????? | | ??# #######?# #### s ##??????????? | | ??# #!! !!#### ##??# #??????????? | | ??# ## #???# ##??????????? | | ??#* ## #???# #???????????? | | ??#=! ]!!!# ## #???## ##???????????? | | ??#%#"""### ## #????## ##????????????? | | ??# ### #?# ## #?????### ####?????????????? | | ??# #?###?# ## #????????## ##??????????????? | | ??# #?????# ## #????????# #??????????????? | | ?## ####### ## #????????# #??????????????? | | ?# #????????#! !#??????????????? | | ?# #????????### ###??????????????? | | ?# ####### ######??????????# #????????????????? | +----------------------------------------------------+ Best States ------------- Heat Dissipation 51 Energy Generation 10 Energy Capacity 125 Matter Stores 300 Matter Capacity 300 Sight Range 16 Terrain Scan Density 10 Evasion (%) 63 Recoil Reduction 2 Item Schematics ----------------- None Robot Schematics ------------------ None Fabricated ------------ Nothing Alien Tech Used ----------------- None Achievements -------------- None Challenges ------------ None Game ------ Seed FocalPitchforkBallwheel Manual? 0 Play Time 00:21:40 Cumulative 22.8 hours Start 2024.11.12 @ 13:14:06 End 2024.11.12 @ 13:38:00 Sessions 5 Manual Loads 0 Difficulty Rogue Special Mode None Game No. 23 Rogue 23 Adventurer 0 Explorer 0 Win Type - Total 0 Types 0/0/0/0/0/0/0/0/0 Lore% 10 Gallery% 22 Achievement% 21 Wizard Run 0 Options --------- Layout 1 ASCII 0 Keyboard 1 Movement Numpad Keybinds 0 Fullscreen 1 Font 24/Smallcaps Map View 50x35 Zoom Use 1% Tactical HUD 1 Map Filters NONE Filters NONE Steam 1 RUN: 4e216062-da5e-436c-8359-da62bbc91bca